fUST/lending_fUST_20241006
["ID","MTS","AMOUNT","RATE_DAILY","PERIOD"]
[339936378,1728166246283,-1018.457987,0.00013698,2]
[339936379,1728166246294,-1018.457987,0.00013698,2]
[339936380,1728166246305,-1018.457987,0.00013698,2]
[339936381,1728166246318,-1018.457987,0.00013698,2]
[339936382,1728166246329,-1018.457987,0.00013698,2]
[339936383,1728166246341,-500.0,0.00013698,2]
[339936384,1728166246351,-1018.457987,0.00013698,2]
[339936385,1728166246363,-681.31,0.00013698,2]
[339936386,1728166246373,-500.0,0.00013698,2]
[339936387,1728166246384,-500.0,0.00013698,2]
[339936388,1728166246396,-151.0,0.00013698,2]
[339936389,1728166246406,-151.0,0.00013698,2]
[339936390,1728166246416,-151.0,0.00013698,2]
[339936391,1728166246427,-500.0,0.00013698,2]
[339936392,1728166246435,-151.0,0.00013698,2]
[339936393,1728166246445,-151.0,0.00013698,2]
[339936394,1728166246456,-151.0,0.00013698,2]
[339936395,1728166246469,-151.0,0.00013698,2]
[339936396,1728166246478,-151.0,0.00013698,2]
[339936397,1728166246492,-500.0,0.00013698,2]
[339936398,1728166246503,-500.0,0.00013698,2]
[339936399,1728166246515,-500.0,0.00013698,2]
[339936400,1728166246525,-500.0,0.00013698,2]
[339936401,1728166246537,-2193.39,0.00013698,2]
[339936402,1728166246548,-500.0,0.00013698,2]
[339936403,1728166246559,-500.0,0.00013698,2]
[339936404,1728166246570,-151.0,0.00013698,2]
[339936405,1728166246581,-151.0,0.00013698,2]
[339936406,1728166246592,-151.0,0.00013698,2]
[339936407,1728166246602,-500.0,0.00013698,2]
[339936408,1728166246612,-151.0,0.00013698,2]
[339936409,1728166246622,-151.0,0.00013698,2]
[339936410,1728166246632,-256.646771,0.00013698,2]
[339936411,1728166246645,-500.0,0.00013698,2]
[339936412,1728166246656,-500.0,0.00013698,2]
[339936413,1728166246667,-500.0,0.00013698,2]
[339936414,1728166246678,-523.56,0.00013698,2]
[339936415,1728166246690,-500.0,0.00013698,2]
[339936416,1728166246701,-589.04,0.00013698,2]
[339936417,1728166246712,-500.0,0.00013698,2]
[339936418,1728166246723,-500.0,0.00013698,2]
[339936419,1728166246734,-523.62,0.00013698,2]
[339936420,1728166246745,-500.0,0.00013698,2]
[339936421,1728166246755,-500.0,0.00013698,2]
[339936422,1728166246765,-500.0,0.00013698,2]
[339936423,1728166246778,-500.0,0.00013698,2]
[339936424,1728166246790,-500.0,0.00013698,2]
[339936425,1728166246802,-383.99898,0.00013698,2]
[339936426,1728166246813,-383.99898,0.00013698,2]
[339936427,1728166246823,-383.99898,0.00013698,2]
[339936428,1728166246832,-500.0,0.00013698,2]
[339936429,1728166246844,-151.0,0.00013698,2]
[339936430,1728166246854,-383.99898,0.00013698,2]
[339936431,1728166246864,-690.02,0.00013698,2]
[339936432,1728166246874,-383.99898,0.00013698,2]
[339936433,1728166246885,-151.0,0.00013698,2]
[339936434,1728166246895,-500.0,0.00013698,2]
[339936435,1728166246906,-383.99898,0.00013698,2]
[339936436,1728166246917,-151.0,0.00013698,2]
[339936437,1728166246927,-500.0,0.00013698,2]
[339936438,1728166246942,-151.0,0.00013698,2]
[339936439,1728166246951,-138.98305464,0.00013698,2]
[339936492,1728167432054,-2627.75533547,0.00011797,2]
[339936493,1728167432069,-427.99395574,0.00011797,2]
[339936494,1728167432082,-3059.14747679,0.00011797,2]
[339936495,1728167432092,-2822.9382758,0.00011897,2]
[339936496,1728167432105,-442.531221,0.00012,2]
[339936497,1728167432123,-211.148967,0.00012238,2]
[339936498,1728167432134,-211.148967,0.00012272,2]
[339936499,1728167432144,-211.148967,0.00012305,2]
[339936500,1728167432153,-300.0,0.00012386,2]
[339936501,1728167432163,-300.0,0.00012387,2]
[339936502,1728167432173,-500.0,0.0001292,2]
[339936503,1728167432182,-500.0,0.0001342,2]
[339936504,1728167432191,-208.21312646,0.000135,2]
[339936505,1728167432200,-155.5973704,0.00013533,2]
[339936506,1728167432212,-2234.12601876,0.00013535,2]
[339936511,1728167438246,-211.148967,0.00012339,2]
[339936512,1728167438255,-211.148967,0.00012372,2]
[339936513,1728167438264,-211.148967,0.00012406,2]
[339936514,1728167438273,-211.148967,0.00012439,2]
[339936515,1728167438283,-211.148967,0.00012473,2]
[339936516,1728167438292,-211.148967,0.00012507,2]
[339936517,1728167438301,-211.148967,0.0001254,2]
[339936518,1728167438310,-211.148967,0.00012574,2]
[339936519,1728167438324,-211.148967,0.00012607,2]
[339936520,1728167438333,-211.148967,0.00012641,2]
[339936521,1728167438343,-211.148967,0.00012674,2]
[339936522,1728167438353,-211.148967,0.00012708,2]
[339936523,1728167438365,-211.148967,0.00012742,2]
[339936524,1728167438375,-211.148967,0.00012775,2]
[339936525,1728167438384,-211.148967,0.00012809,2]
[339936526,1728167438395,-211.148967,0.00012842,2]
[339936527,1728167438406,-211.148967,0.00012876,2]
[339936528,1728167438417,-4962.73930943,0.00013535,2]
[339936529,1728167438428,-1000.0,0.00013588,2]
[339936530,1728167438438,-420.0,0.00013592,2]
[339936531,1728167438447,-191.4688782,0.00013598,2]
[339936532,1728167438457,-1023.1683525,0.00013598,2]
[339936533,1728167438468,-934.50792127,0.000136,2]
[339936534,1728167438477,-29780.1105941,0.000136,2]
[339936535,1728167438487,-153.278941,0.000136,2]
[339936536,1728167438498,-210.632,0.000136,2]
[339936537,1728167438508,-420.0,0.00013626,2]
[339936538,1728167438520,-500.17126502,0.00013673,2]
[339936539,1728167438529,-43552.2330334,0.00013678,2]
[339936540,1728167438541,-804.42034078,0.00013678,2]
[339936541,1728167438552,-62217.475762,0.00013688,2]
[339936542,1728167438562,-1149.1719154,0.00013688,2]
[339936543,1728167438573,-3552.7628447,0.00013697,2]
[339936544,1728167438584,-509.83673772,0.00013698,2]
[339936545,1728167438594,-348.14961238,0.00013698,2]
[339936546,1728167438606,-500.0,0.00013698,2]
[339936547,1728167438616,-500.0,0.00013698,2]
[339936548,1728167438626,-491.50594457,0.00013698,2]
[339936549,1728167438637,-500.0,0.00013698,2]
[339936550,1728167438647,-191.15604439,0.00013698,2]
[339936551,1728167438658,-500.0,0.00013698,2]
[339936552,1728167438669,-242.12981629,0.00013698,2]
[339936553,1728167438680,-500.0,0.00013698,2]
[339936554,1728167438692,-500.0,0.00013698,2]
[339936555,1728167438702,-201.61969295,0.00013698,2]
[339936556,1728167438712,-353.00635938,0.00013698,2]
[339936557,1728167438722,-500.0,0.00013698,2]
[339936558,1728167438734,-500.0,0.00013698,2]
[339936559,1728167438746,-500.0,0.00013698,2]
[339936560,1728167438756,-500.0,0.00013698,2]
[339936561,1728167438767,-499.84286471,0.00013698,2]
[339936562,1728167438776,-500.0,0.00013698,2]
[339936563,1728167438785,-500.0,0.00013698,2]
[339936564,1728167438794,-500.0,0.00013698,2]
[339936565,1728167438803,-185.35952325,0.00013698,2]
[339936566,1728167438813,-671.57,0.00013698,2]
[339936567,1728167438824,-1435.49,0.00013698,2]
[339936568,1728167438834,-500.0,0.00013698,2]
[339936569,1728167438845,-500.0,0.00013698,2]
[339936570,1728167438856,-1501.48,0.00013698,2]
[339936571,1728167438865,-500.0,0.00013698,2]
[339936572,1728167438874,-500.0,0.00013698,2]
[339936573,1728167438883,-500.0,0.00013698,2]
[339936574,1728167438893,-500.0,0.00013698,2]
[339936575,1728167438903,-500.0,0.00013698,2]
[339936576,1728167438913,-500.0,0.00013698,2]
[339936577,1728167438922,-500.0,0.00013698,2]
[339936578,1728167438933,-500.0,0.00013698,2]
[339936579,1728167438944,-500.0,0.00013698,2]
[339936580,1728167438956,-500.0,0.00013698,2]
[339936581,1728167438966,-500.0,0.00013698,2]
[339936582,1728167438977,-500.0,0.00013698,2]
[339936583,1728167438987,-500.0,0.00013698,2]
[339936584,1728167438997,-540.08,0.00013698,2]
[339936585,1728167439008,-500.0,0.00013698,2]
[339936586,1728167439019,-500.0,0.00013698,2]
[339936587,1728167439030,-500.0,0.00013698,2]
[339936588,1728167439039,-500.0,0.00013698,2]
[339936589,1728167439048,-500.0,0.00013698,2]
[339936590,1728167439058,-500.0,0.00013698,2]
[339936591,1728167439067,-500.0,0.00013698,2]
[339936592,1728167439076,-500.0,0.00013698,2]
[339936593,1728167439086,-500.0,0.00013698,2]
[339936594,1728167439095,-500.0,0.00013698,2]
[339936595,1728167439106,-500.0,0.00013698,2]
[339936596,1728167439117,-500.0,0.00013698,2]
[339936597,1728167439127,-500.0,0.00013698,2]
[339936598,1728167439138,-656.29,0.00013698,2]
[339936599,1728167439150,-500.0,0.00013698,2]
[339936600,1728167439161,-500.0,0.00013698,2]
[339936601,1728167439171,-500.0,0.00013698,2]
[339936602,1728167439182,-500.0,0.00013698,2]
[339936603,1728167439192,-500.0,0.00013698,2]
[339936604,1728167439204,-500.0,0.00013698,2]
[339936605,1728167439216,-500.0,0.00013698,2]
[339936606,1728167439227,-500.0,0.00013698,2]
[339936607,1728167439237,-506.63,0.00013698,2]
[339936608,1728167439248,-500.0,0.00013698,2]
[339936609,1728167439259,-500.0,0.00013698,2]
[339936610,1728167439270,-721.01,0.00013698,2]
[339936611,1728167439280,-500.0,0.00013698,2]
[339936612,1728167439292,-500.0,0.00013698,2]
[339936613,1728167439303,-500.0,0.00013698,2]
[339936614,1728167439314,-500.44387226,0.00013698,2]
[339936615,1728167439328,-500.0,0.00013698,2]
[339936616,1728167439340,-500.0,0.00013698,2]
[339936617,1728167439351,-500.0,0.00013698,2]
[339936618,1728167439363,-765.16,0.00013698,2]
[339936619,1728167439374,-500.0,0.00013698,2]
[339936620,1728167439386,-500.0,0.00013698,2]
[339936621,1728167439397,-500.0,0.00013698,2]
[339936622,1728167439408,-500.0,0.00013698,2]
[339936623,1728167439418,-500.0,0.00013698,2]
[339936624,1728167439428,-500.0,0.00013698,2]
[339936625,1728167439439,-500.0,0.00013698,2]
[339936626,1728167439450,-153.82201966,0.00013698,2]
[339936627,1728167439460,-500.0,0.00013698,2]
[339936628,1728167439471,-500.0,0.00013698,2]
[339936629,1728167439481,-500.0,0.00013698,2]
[339936630,1728167439493,-500.0,0.00013698,2]
[339936631,1728167439505,-500.0,0.00013698,2]
[339936632,1728167439516,-500.0,0.00013698,2]
[339936633,1728167439526,-570.37,0.00013698,2]
[339936634,1728167439537,-500.0,0.00013698,2]
[339936635,1728167439549,-500.0,0.00013698,2]
[339936636,1728167439560,-727.78,0.00013698,2]
[339936637,1728167439573,-466.69740991,0.00013698,2]
[339936638,1728167439584,-500.0,0.00013698,2]
[339936639,1728167439595,-500.0,0.00013698,2]
[339936640,1728167439611,-500.0,0.00013698,2]
[339936641,1728167439621,-500.0,0.00013698,2]
[339936642,1728167439632,-180.52734661,0.00013698,2]
[339936643,1728167439641,-778.77,0.00013698,2]
[339936644,1728167439651,-500.0,0.00013698,2]
[339936645,1728167439660,-500.0,0.00013698,2]
[339936646,1728167439670,-500.0,0.00013698,2]
[339936647,1728167439680,-500.0,0.00013698,2]
[339936648,1728167439690,-500.0,0.00013698,2]
[339936649,1728167439699,-500.0,0.00013698,2]
[339936651,1728167439871,-1323.31,0.00013698,2]
[339936652,1728167439881,-542.94,0.00013698,2]
[339936653,1728167439891,-500.0,0.00013698,2]
[339936654,1728167439902,-500.0,0.00013698,2]
[339936655,1728167439914,-500.0,0.00013698,2]
[339936656,1728167439926,-500.0,0.00013698,2]
[339936657,1728167439937,-500.0,0.00013698,2]
[339936658,1728167439947,-500.0,0.00013698,2]
[339936659,1728167439956,-500.0,0.00013698,2]
[339936660,1728167439966,-500.0,0.00013698,2]
[339936662,1728167439975,-500.0,0.00013698,2]
[339936664,1728167439985,-500.0,0.00013698,2]
[339936665,1728167439994,-151.0,0.00013698,2]
[339936666,1728167440004,-500.0,0.00013698,2]
[339936667,1728167440013,-177.78,0.00013698,2]
[339936668,1728167440023,-500.0,0.00013698,2]
[339936669,1728167440033,-500.0,0.00013698,2]
[339936670,1728167440042,-500.0,0.00013698,2]
[339936671,1728167440052,-500.0,0.00013698,2]
[339936672,1728167440061,-500.0,0.00013698,2]
[339936673,1728167440070,-500.0,0.00013698,2]
[339936674,1728167440080,-500.0,0.00013698,2]
[339936675,1728167440090,-500.0,0.00013698,2]
[339936676,1728167440099,-500.0,0.00013698,2]
[339936677,1728167440109,-500.0,0.00013698,2]
[339936678,1728167440119,-500.0,0.00013698,2]
[339936680,1728167440128,-500.0,0.00013698,2]
[339936682,1728167440138,-500.0,0.00013698,2]
[339936684,1728167440150,-500.0,0.00013698,2]
[339936686,1728167440159,-782.67,0.00013698,2]
[339936688,1728167440169,-500.0,0.00013698,2]
[339936690,1728167440180,-702.78,0.00013698,2]
[339936691,1728167440189,-500.0,0.00013698,2]
[339936692,1728167440199,-369.69370575,0.00013698,2]
[339936694,1728167440209,-500.0,0.00013698,2]
[339936696,1728167440218,-521.16,0.00013698,2]
[339936697,1728167440227,-500.0,0.00013698,2]
[339936698,1728167440236,-500.0,0.00013698,2]
[339936699,1728167440245,-500.0,0.00013698,2]
[339936700,1728167440255,-500.0,0.00013698,2]
[339936701,1728167440264,-500.0,0.00013698,2]
[339936702,1728167440273,-500.0,0.00013698,2]
[339936703,1728167440283,-500.0,0.00013698,2]
[339936705,1728167440293,-500.0,0.00013698,2]
[339936706,1728167440302,-500.0,0.00013698,2]
[339936707,1728167440312,-734.17,0.00013698,2]
[339936708,1728167440324,-500.0,0.00013698,2]
[339936709,1728167440334,-500.0,0.00013698,2]
[339936710,1728167440343,-1000.0,0.00013698,2]
[339936711,1728167440352,-500.0,0.00013698,2]
[339936712,1728167440362,-500.0,0.00013698,2]
[339936713,1728167440371,-500.0,0.00013698,2]
[339936714,1728167440381,-500.0,0.00013698,2]
[339936715,1728167440392,-500.0,0.00013698,2]
[339936716,1728167440403,-500.0,0.00013698,2]
[339936717,1728167440413,-500.0,0.00013698,2]
[339936718,1728167440423,-500.0,0.00013698,2]
[339936719,1728167440432,-637.74,0.00013698,2]
[339936720,1728167440441,-177.16882849,0.00013698,2]
[339936721,1728167440451,-500.0,0.00013698,2]
[339936722,1728167440460,-500.0,0.00013698,2]
[339936723,1728167440469,-500.0,0.00013698,2]
[339936724,1728167440478,-500.0,0.00013698,2]
[339936725,1728167440488,-501.00887923,0.00013698,2]
[339936726,1728167440497,-586.89498287,0.00013698,2]
[339936727,1728167440507,-751.68,0.00013698,2]
[339936728,1728167440516,-623.53,0.00013698,2]
[339936729,1728167440525,-771.48,0.00013698,2]
[339936730,1728167440535,-500.0,0.00013698,2]
[339936731,1728167440543,-590.47,0.00013698,2]
[339936732,1728167440553,-500.0,0.00013698,2]
[339936733,1728167440562,-500.0,0.00013698,2]
[339936734,1728167440571,-500.0,0.00013698,2]
[339936735,1728167440580,-500.0,0.00013698,2]
[339936736,1728167440589,-500.0,0.00013698,2]
[339936737,1728167440598,-151.0,0.00013698,2]
[339936738,1728167440609,-500.0,0.00013698,2]
[339936739,1728167440617,-500.0,0.00013698,2]
[339936740,1728167440626,-500.0,0.00013698,2]
[339936741,1728167440635,-500.0,0.00013698,2]
[339936742,1728167440644,-1435.21,0.00013698,2]
[339936743,1728167440653,-500.0,0.00013698,2]
[339936744,1728167440662,-500.0,0.00013698,2]
[339936745,1728167440671,-500.0,0.00013698,2]
[339936746,1728167440683,-500.0,0.00013698,2]
[339936747,1728167440693,-500.0,0.00013698,2]
[339936748,1728167440702,-500.0,0.00013698,2]
[339936749,1728167440711,-500.0,0.00013698,2]
[339936750,1728167440720,-500.0,0.00013698,2]
[339936751,1728167440729,-500.75886572,0.00013698,2]
[339936752,1728167440738,-500.0,0.00013698,2]
[339936753,1728167440747,-500.0,0.00013698,2]
[339936754,1728167440756,-500.0,0.00013698,2]
[339936755,1728167440764,-500.0,0.00013698,2]
[339936756,1728167440773,-500.0,0.00013698,2]
[339936757,1728167440783,-500.0,0.00013698,2]
[339936758,1728167440792,-500.0,0.00013698,2]
[339936759,1728167440801,-500.0,0.00013698,2]
[339936760,1728167440810,-151.0,0.00013698,2]
[339936761,1728167440820,-579.18,0.00013698,2]
[339936762,1728167440829,-1144.1,0.00013698,2]
[339936763,1728167440838,-500.0,0.00013698,2]
[339936764,1728167440847,-500.0,0.00013698,2]
[339936765,1728167440857,-500.0,0.00013698,2]
[339936766,1728167440866,-500.0,0.00013698,2]
[339936767,1728167440875,-500.0,0.00013698,2]
[339936768,1728167440885,-500.0,0.00013698,2]
[339936769,1728167440894,-500.0,0.00013698,2]
[339936770,1728167440903,-500.0,0.00013698,2]
[339936771,1728167440912,-500.0,0.00013698,2]
[339936772,1728167440921,-500.0,0.00013698,2]
[339936773,1728167440930,-558.83,0.00013698,2]
[339936774,1728167440939,-500.0,0.00013698,2]
[339936775,1728167440948,-500.0,0.00013698,2]
[339936776,1728167440957,-500.0,0.00013698,2]
[339936777,1728167440966,-955.52,0.00013698,2]
[339936778,1728167440975,-500.0,0.00013698,2]
[339936779,1728167440984,-500.0,0.00013698,2]
[339936780,1728167440994,-500.0,0.00013698,2]
[339936781,1728167441003,-500.0,0.00013698,2]
[339936782,1728167441012,-500.0,0.00013698,2]
[339936783,1728167441022,-500.0,0.00013698,2]
[339936784,1728167441031,-500.0,0.00013698,2]
[339936785,1728167441040,-500.0,0.00013698,2]
[339936786,1728167441050,-500.0,0.00013698,2]
[339936787,1728167441059,-500.0,0.00013698,2]
[339936788,1728167441069,-500.0,0.00013698,2]
[339936789,1728167441079,-500.0,0.00013698,2]
[339936790,1728167441089,-500.0,0.00013698,2]
[339936791,1728167441098,-500.0,0.00013698,2]
[339936792,1728167441111,-500.0,0.00013698,2]
[339936793,1728167441121,-151.0,0.00013698,2]
[339936794,1728167441131,-500.0,0.00013698,2]
[339936795,1728167441141,-500.0,0.00013698,2]
[339936796,1728167441152,-500.0,0.00013698,2]
[339936797,1728167441163,-500.0,0.00013698,2]
[339936798,1728167441174,-500.0,0.00013698,2]
[339936799,1728167441185,-500.0,0.00013698,2]
[339936800,1728167441197,-675.68,0.00013698,2]
[339936801,1728167441207,-500.0,0.00013698,2]
[339936802,1728167441217,-500.36659977,0.00013698,2]
[339936803,1728167441227,-500.0,0.00013698,2]
[339936804,1728167441238,-500.0,0.00013698,2]
[339936805,1728167441248,-634.68,0.00013698,2]
[339936806,1728167441259,-1707.03,0.00013698,2]
[339936807,1728167441270,-500.0,0.00013698,2]
[339936808,1728167441281,-501.83,0.00013698,2]
[339936809,1728167441290,-1228.94,0.00013698,2]
[339936810,1728167441300,-552.23,0.00013698,2]
[339936811,1728167441309,-500.0,0.00013698,2]
[339936812,1728167441323,-500.0,0.00013698,2]
[339936813,1728167441333,-609.86,0.00013698,2]
[339936814,1728167441342,-610.38,0.00013698,2]
[339936815,1728167441352,-725.58,0.00013698,2]
[339936816,1728167441361,-500.0,0.00013698,2]
[339936817,1728167441371,-151.0,0.00013698,2]
[339936818,1728167441380,-598.93,0.00013698,2]
[339936819,1728167441389,-500.0,0.00013698,2]
[339936820,1728167441399,-643.02888453,0.00013698,2]
[339936821,1728167441408,-500.0,0.00013698,2]
[339936822,1728167441418,-1134.79,0.00013698,2]
[339936823,1728167441427,-500.0,0.00013698,2]
[339936824,1728167441436,-500.0,0.00013698,2]
[339936825,1728167441445,-500.0,0.00013698,2]
[339936826,1728167441454,-500.0,0.00013698,2]
[339936827,1728167441463,-735.47,0.00013698,2]
[339936828,1728167441473,-500.0,0.00013698,2]
[339936829,1728167441482,-500.0,0.00013698,2]
[339936830,1728167441491,-500.0,0.00013698,2]
[339936831,1728167441501,-678.55,0.00013698,2]
[339936832,1728167441510,-500.0,0.00013698,2]
[339936833,1728167441519,-500.0,0.00013698,2]
[339936834,1728167441528,-500.0,0.00013698,2]
[339936835,1728167441538,-500.0,0.00013698,2]
[339936836,1728167441547,-500.0,0.00013698,2]
[339936837,1728167441556,-322.97837058,0.00013698,2]
[339936838,1728167441565,-500.0,0.00013698,2]
[339936839,1728167441575,-500.0,0.00013698,2]
[339936840,1728167441584,-500.0,0.00013698,2]
[339936841,1728167441594,-500.0,0.00013698,2]
[339936842,1728167441604,-500.0,0.00013698,2]
[339936843,1728167441614,-577.94320501,0.00013698,2]
[339936844,1728167441623,-1024.97,0.00013698,2]
[339936845,1728167441632,-663.66,0.00013698,2]
[339936846,1728167441642,-500.0,0.00013698,2]
[339936847,1728167441651,-500.0,0.00013698,2]
[339936848,1728167441661,-500.0,0.00013698,2]
[339936849,1728167441671,-543.9,0.00013698,2]
[339936850,1728167441680,-518.06,0.00013698,2]
[339936851,1728167441690,-500.0,0.00013698,2]
[339936852,1728167441699,-500.0,0.00013698,2]
[339936853,1728167441708,-500.0,0.00013698,2]
[339936854,1728167441718,-551.77,0.00013698,2]
[339936855,1728167441727,-500.0,0.00013698,2]
[339936856,1728167441736,-786.66,0.00013698,2]
[339936857,1728167441745,-500.0,0.00013698,2]
[339936858,1728167441754,-500.0,0.00013698,2]
[339936859,1728167441763,-500.0,0.00013698,2]
[339936860,1728167441773,-1149.42,0.00013698,2]
[339936861,1728167441782,-565.12,0.00013698,2]
[339936862,1728167441792,-500.0,0.00013698,2]
[339936863,1728167441801,-501.4,0.00013698,2]
[339936864,1728167441811,-500.0,0.00013698,2]
[339936865,1728167441820,-500.0,0.00013698,2]
[339936866,1728167441830,-500.0,0.00013698,2]
[339936867,1728167441839,-151.0,0.00013698,2]
[339936868,1728167441848,-151.0,0.00013698,2]
[339936869,1728167441858,-500.0,0.00013698,2]
[339936870,1728167441868,-495.1146,0.00013698,2]
[339936871,1728167441878,-500.0,0.00013698,2]
[339936872,1728167441887,-595.69,0.00013698,2]
[339936873,1728167441897,-500.0,0.00013698,2]
[339936874,1728167441907,-500.0,0.00013698,2]
[339936875,1728167441916,-500.0,0.00013698,2]
[339936876,1728167441926,-915.47,0.00013698,2]
[339936877,1728167441935,-563.17,0.00013698,2]
[339936878,1728167441945,-500.0,0.00013698,2]
[339936879,1728167441954,-500.0,0.00013698,2]
[339936880,1728167441964,-500.0,0.00013698,2]
[339936881,1728167441974,-500.0,0.00013698,2]
[339936882,1728167441983,-674.41,0.00013698,2]
[339936883,1728167441993,-500.0,0.00013698,2]
[339936884,1728167442002,-500.0,0.00013698,2]
[339936885,1728167442012,-733.81,0.00013698,2]
[339936886,1728167442022,-500.0,0.00013698,2]
[339936887,1728167442031,-500.0,0.00013698,2]
[339936888,1728167442040,-500.0,0.00013698,2]
[339936889,1728167442050,-500.0,0.00013698,2]
[339936890,1728167442064,-500.0,0.00013698,2]
[339936891,1728167442073,-500.0,0.00013698,2]
[339936892,1728167442083,-500.0,0.00013698,2]
[339936893,1728167442093,-896.73,0.00013698,2]
[339936894,1728167442103,-500.0,0.00013698,2]
[339936895,1728167442114,-500.0,0.00013698,2]
[339936896,1728167442123,-500.0,0.00013698,2]
[339936897,1728167442132,-500.0,0.00013698,2]
[339936898,1728167442142,-500.0,0.00013698,2]
[339936899,1728167442151,-809.89,0.00013698,2]
[339936900,1728167442161,-500.0,0.00013698,2]
[339936901,1728167442170,-500.0,0.00013698,2]
[339936902,1728167442181,-658.69,0.00013698,2]
[339936903,1728167442191,-629.97,0.00013698,2]
[339936904,1728167442200,-500.0,0.00013698,2]
[339936905,1728167442211,-500.0,0.00013698,2]
[339936906,1728167442220,-738.4,0.00013698,2]
[339936907,1728167442230,-500.0,0.00013698,2]
[339936908,1728167442239,-1021.45,0.00013698,2]
[339936909,1728167442248,-500.0,0.00013698,2]
[339936910,1728167442257,-500.0,0.00013698,2]
[339936911,1728167442266,-1001.75,0.00013698,2]
[339936912,1728167442275,-500.0,0.00013698,2]
[339936913,1728167442284,-500.0,0.00013698,2]
[339936914,1728167442294,-500.0,0.00013698,2]
[339936915,1728167442304,-500.0,0.00013698,2]
[339936916,1728167442314,-500.0,0.00013698,2]
[339936917,1728167442328,-573.84,0.00013698,2]
[339936918,1728167442337,-500.0,0.00013698,2]
[339936919,1728167442347,-571.90753243,0.00013698,2]
[339936920,1728167442359,-585.34,0.00013698,2]
[339936921,1728167442369,-500.0,0.00013698,2]
[339936922,1728167442378,-625.5,0.00013698,2]
[339936923,1728167442388,-551.09,0.00013698,2]
[339936924,1728167442398,-897.97,0.00013698,2]
[339936925,1728167442409,-590.51,0.00013698,2]
[339936926,1728167442419,-500.0,0.00013698,2]
[339936927,1728167442429,-500.0,0.00013698,2]
[339936928,1728167442439,-816.2,0.00013698,2]
[339936929,1728167442448,-2129.98,0.00013698,2]
[339936930,1728167442458,-500.0,0.00013698,2]
[339936931,1728167442467,-500.0,0.00013698,2]
[339936932,1728167442476,-500.0,0.00013698,2]
[339936933,1728167442489,-500.0,0.00013698,2]
[339936934,1728167442500,-500.0,0.00013698,2]
[339936935,1728167442514,-511.55408131,0.00013698,2]
[339936936,1728167442525,-605.47,0.00013698,2]
[339936937,1728167442535,-591.35,0.00013698,2]
[339936938,1728167442547,-500.0,0.00013698,2]
[339936939,1728167442559,-500.0,0.00013698,2]
[339936940,1728167442572,-844.18,0.00013698,2]
[339936941,1728167442584,-711.35,0.00013698,2]
[339936942,1728167442595,-500.0,0.00013698,2]
[339936943,1728167442607,-500.0,0.00013698,2]
[339936944,1728167442619,-500.0,0.00013698,2]
[339936945,1728167442628,-500.0,0.00013698,2]